bitfinex-derivatives/quotes_ETHF0:USTF0_20251006
["timestamp","ask_amount","ask_price","bid_price","bid_amount"]
[1759711571879,0.39849,4515.7,4515.5,0.4389]
[1759711572084,0.2258,4515.7,4515.6,1.17739]
[1759711572380,0.768,4516.1,4516.0,0.7789]
[1759711572581,1.16649,4515.7,4515.6,0.7789]
[1759711572782,0.768,4515.7,4515.6,0.7789]
[1759711572974,0.992,4515.7,4515.6,0.7789]
[1759711573383,0.992,4515.7,4515.6,0.2154]
[1759711573580,0.992,4515.7,4515.6,0.5554]
[1759711573786,0.992,4515.7,4515.6,0.7789]
[1759711574086,0.992,4515.7,4515.6,0.4389]
[1759711574690,0.4498,4515.7,4515.6,0.7789]
[1759711575388,0.7815,4515.7,4515.6,0.7789]
[1759711575886,1.17998,4515.7,4515.6,0.7789]
[1759711576088,1.39048,4515.7,4515.6,0.4389]
[1759711576685,1.39048,4515.7,4515.6,0.7789]
[1759711577183,0.992,4515.7,4515.6,0.2154]
[1759711577382,0.768,4515.7,4515.6,0.7789]
[1759711577583,0.4498,4515.7,4515.6,0.7789]
[1759711577782,0.4498,4515.7,4515.6,1.17739]
[1759711578188,0.3252,4516.1,4515.6,0.7789]
[1759711578385,0.3252,4516.1,4515.5,0.128]
[1759711578386,3.2078,4516.2,4516.0,0.3505]
[1759711578686,0.94592,4516.5,4516.4,0.7664]
[1759711578885,1.38852,4516.5,4516.4,0.7664]
[1759711579480,1.16452,4516.5,4516.4,0.7664]
[1759711579792,0.2223,4515.7,4515.6,3.4224]
[1759711579993,0.5475,4515.7,4515.6,3.6449]
[1759711580185,0.224,4516.0,4515.7,0.39848]
[1759711580385,0.6649,4516.0,4515.9,0.7664]
[1759711580988,0.9901,4516.0,4515.9,0.7664]
[1759711581189,0.7661,4515.7,4515.6,0.7664]
[1759711581983,0.7661,4515.7,4515.6,0.2146]
[1759711582190,0.2223,4515.3,4515.2,0.4371]
[1759711582389,0.5475,4515.3,4515.2,0.7664]
[1759711582592,0.3252,4514.7,4514.5,3.2078]
[1759711582891,0.7661,4514.6,4514.5,3.4224]
[1759711583090,0.7661,4514.6,4514.5,3.2078]
[1759711583396,0.7661,4514.4,4514.3,0.00216826]
[1759711583592,3.51492934,4514.4,4513.5,3.2078]
[1759711583802,0.3252,4512.8,4512.7,3.2078]
[1759711584092,0.7661,4512.8,4512.7,3.4224]
[1759711584395,0.7661,4512.8,4512.7,3.7517]
[1759711584697,0.7661,4512.4,4512.3,0.2146]
[1759711584891,0.7661,4512.4,4512.3,0.21624448]
[1759711585288,0.7661,4512.4,4512.3,0.76804448]
[1759711585494,0.9901,4512.4,4512.3,0.76804448]
[1759711585990,0.9901,4512.4,4511.5,4.39823494]
[1759711586192,0.7661,4511.6,4511.5,3.2078]
[1759711586392,0.7661,4511.6,4511.5,3.4224]
[1759711586393,0.9901,4511.6,4511.5,3.4224]
[1759711586592,0.9901,4511.6,4511.5,3.7517]
[1759711586792,0.9901,4511.6,4511.5,3.4224]
[1759711587191,0.9901,4511.6,4511.5,3.42412839]
[1759711588889,0.9901,4511.6,4511.5,3.75342839]
[1759711589093,0.9901,4511.6,4511.5,3.97592839]
[1759711589397,0.7661,4511.6,4511.5,3.97592839]
[1759711589594,0.2223,4511.6,4511.5,3.97592839]
[1759711589891,0.2223,4511.6,4510.3,1.19043494]
[1759711589892,0.1354,4511.5,4510.5,3.6651]
[1759711590094,0.5475,4511.2,4511.1,0.5439]
[1759711590284,3.533,4511.8,4511.4,0.3293]
[1759711590491,0.224,4511.7,4511.6,0.4371]
[1759711590795,3.533,4511.8,4511.7,0.3293]
[1759711590989,4.37813,4511.8,4511.7,0.76911127]
[1759711591197,4.59673,4511.8,4511.7,0.43981127]
[1759711592191,4.1979,4511.8,4511.7,0.76911127]
[1759711592797,3.9739,4511.8,4511.7,0.76911127]
[1759711593097,4.1979,4511.8,4511.7,0.76911127]
[1759711593494,3.9739,4511.8,4511.7,0.76911127]
[1759711593694,4.1979,4511.8,4511.7,0.00271127]
[1759711594299,8.9739,4511.8,4511.7,1.27e-06]
[1759711594598,9.1979,4511.8,4511.7,1.27e-06]
[1759711595697,8.9739,4511.8,4511.7,1.27e-06]
[1759711595901,9.1979,4511.8,4511.7,1.27e-06]
[1759711596398,8.9739,4511.8,4511.7,1.27e-06]
[1759711596595,9.1979,4511.8,4511.7,1.27e-06]
[1759711596793,3.9739,4511.8,4511.7,0.21140127]
[1759711596992,4.1979,4511.8,4511.7,0.21140127]
[1759711597192,3.9739,4511.8,4511.7,0.21140127]
[1759711597393,4.1979,4511.8,4511.7,0.21140127]
[1759711597806,3.9739,4511.8,4511.7,0.21140127]
[1759711598000,3.8727,4511.8,4511.7,1.27e-06]
[1759711599302,3.6487,4511.8,4511.7,1.27e-06]
[1759711599500,3.8727,4511.8,4511.7,1.27e-06]
[1759711601706,3.6487,4511.8,4511.7,1.27e-06]
[1759711601907,3.8727,4511.8,4511.7,1.27e-06]
[1759711604105,3.6487,4511.8,4511.7,0.42660127]
[1759711604316,3.4301,4511.8,4511.7,0.74530127]
[1759711604507,0.5444,4512.2,4512.1,0.7453]
[1759711604813,0.3386,4512.2,4511.7,1.27e-06]
[1759711605110,0.7539,4511.8,4511.7,0.61024127]
[1759711605301,0.224,4511.8,4511.7,1.14414127]
[1759711605811,0.9432,4512.2,4512.1,0.4266]
[1759711606011,1.3767,4512.2,4512.1,0.7453]
[1759711606711,0.9779,4512.2,4512.1,0.7453]
[1759711607306,0.7539,4512.2,4512.1,0.7453]
[1759711607611,0.9779,4512.2,4512.1,0.7453]
[1759711608011,0.2058,4512.2,4512.1,0.7453]
[1759711608213,0.224,4512.2,4512.1,0.7453]
[1759711608808,0.9755,4512.2,4512.1,0.4266]
[1759711609004,0.531,4512.2,4512.1,0.4455]
[1759711609315,0.6649,4512.2,4512.1,1.1623]
[1759711609515,0.4445,4512.2,4512.1,1.1623]
[1759711609813,0.22242535,4512.8,4512.7,0.7635]
[1759711610119,0.44642535,4512.8,4512.7,0.7635]
[1759711610312,0.75702535,4512.8,4512.7,0.7635]
[1759711611009,0.53302535,4512.8,4512.7,0.7635]
[1759711611211,0.75702535,4512.8,4512.7,0.7635]
[1759711611714,0.53302535,4512.8,4512.7,0.7635]
[1759711611912,0.66682535,4512.8,4512.7,0.7635]
[1759711612116,0.97742535,4512.8,4512.7,0.7635]
[1759711612414,0.97742535,4512.8,4512.7,0.2208]
[1759711613115,0.5311,4512.4,4512.3,0.7635]
[1759711613313,0.2205,4512.4,4512.3,0.7635]
[1759711613513,0.5311,4512.4,4512.3,0.7635]
[1759711613709,0.22242535,4512.8,4512.7,1.16225]
[1759711614015,0.00192535,4512.8,4512.7,1.16225]
[1759711614315,0.00192535,4512.8,4512.7,6.16225]
[1759711617608,0.62116535,4512.8,4512.7,0.7635]
[1759711617813,0.75342535,4512.8,4512.7,0.7635]
[1759711618112,0.22242535,4512.8,4512.7,0.7635]
[1759711618314,0.00192535,4512.8,4512.7,0.7635]
[1759711618912,0.22242535,4512.8,4512.7,0.7635]
[1759711619113,0.00192535,4512.8,4512.7,0.7635]
[1759711619820,0.00192535,4512.8,4512.7,5.7635]
[1759711620014,0.6221,4513.7,4513.6,0.7635]
[1759711620213,0.7515,4513.2,4513.1,3.2078]
[1759711620610,0.7515,4513.2,4513.1,3.4286]
[1759711620817,0.7515,4513.2,4513.1,3.7466]
[1759711621116,0.75310265,4513.2,4513.1,0.7635]
[1759711621319,1.15181265,4513.2,4512.7,0.318]
[1759711621721,0.2204,4512.9,4512.8,0.61954]
[1759711622021,0.7515,4512.9,4512.8,1.16224]
[1759711623416,0.00160265,4513.2,4513.1,0.7635]
[1759711623621,0.00160265,4513.2,4513.1,3.9713]
[1759711630623,0.5311,4514.3,4514.2,0.7635]
[1759711630927,3.3398,4515.0,4514.5,0.8947]
[1759711630928,0.2205,4514.6,4514.5,0.8947]
[1759711631122,0.2205,4514.8,4514.7,0.4455]
[1759711631316,0.7515,4514.8,4514.7,0.4455]
[1759711631620,0.75327353,4514.8,4514.7,0.7635]
[1759711632219,0.00177353,4514.8,4514.7,0.7635]
[1759711633028,0.53287353,4514.8,4514.7,0.7635]
[1759711634325,0.22227353,4514.8,4514.7,0.7635]
[1759711634724,1.15183353,4514.8,4514.7,0.7635]
[1759711634919,0.4409,4514.5,4514.4,3.82719]
[1759711635122,0.7515,4514.5,4514.4,4.14519]
[1759711635426,0.7515,4514.5,4514.4,3.7466]
[1759711635928,0.7515,4514.5,4514.4,0.5388]
[1759711636526,0.7515,4514.5,4514.4,0.7635]
[1759711637328,0.7515,4514.5,4514.4,0.4455]
[1759711637528,5.5669,4514.5,4513.9,3.2078]
[1759711637824,0.7668,4513.4,4513.3,3.2078]
[1759711638923,0.7668,4513.4,4512.7,0.3107]
[1759711638924,0.7668,4512.9,4512.8,3.2078]
[1759711639324,5.7668,4512.9,4512.8,3.2078]
[1759711639623,0.7668,4512.9,4512.8,3.2078]
[1759711639828,0.7668,4512.9,4512.8,3.9614]
[1759711639829,0.224,4512.9,4512.8,3.9614]
[1759711640030,1.29149,4513.5,4513.4,0.22]
[1759711640229,1.29149,4513.5,4512.5,0.3107]
[1759711640230,0.3197,4513.4,4512.5,0.3107]
[1759711640530,0.7668,4512.6,4512.5,0.7536]
[1759711640730,2.83173171,4513.3,4512.8,0.39874]
[1759711641032,0.7668,4513.4,4513.3,0.22]
[1759711641227,1.38949,4513.4,4513.3,0.22]
[1759711642329,0.228,4513.4,4513.3,1.1523]
[1759711642531,0.7668,4513.9,4513.8,0.5307]
[1759711642731,0.9908,4513.9,4513.8,0.7536]
[1759711643622,0.228,4513.9,4513.8,1.15225]
[1759711644023,0.228,4513.9,4513.8,0.7536]
[1759711644233,0.5477,4513.9,4513.8,0.7536]
[1759711645030,0.5477,4513.9,4513.8,1.15225]
[1759711645633,0.7668,4513.9,4513.8,0.7536]
[1759711646033,0.39867,4513.6,4513.3,1.19098183]
[1759711646225,0.4471,4513.2,4512.9,3.2078]
[1759711646430,0.4471,4512.7,4512.5,1.19098183]
[1759711646725,1.16559,4512.3,4512.2,1.19098183]
[1759711647132,1.16559,4512.3,4512.1,1.50168183]
[1759711647435,0.7668,4512.2,4512.1,1.72168183]
[1759711647829,3.3338,4513.0,4512.9,0.22]
[1759711647830,1.29153,4513.0,4512.9,0.22]
[1759711648028,0.7668,4512.6,4512.5,0.22]
[1759711648434,0.9908,4512.6,4512.5,0.22]
[1759711648834,0.4471,4512.3,4512.2,0.3107]
[1759711649030,0.7668,4512.3,4512.2,0.5307]
[1759711649234,0.7668,4512.3,4512.2,0.22]
[1759711649437,0.93761,4512.1,4512.0,0.22]
[1759711649636,1.16561,4512.1,4512.0,0.22]
[1759711651234,0.7668,4512.1,4512.0,0.22]
[1759711651942,0.7668,4512.1,4511.7,1.27e-06]
[1759711652137,0.39883,4511.9,4511.7,1.27e-06]
[1759711652832,0.3197,4511.8,4511.7,1.27e-06]
[1759711653032,0.3168,4511.8,4511.7,1.27e-06]
[1759711653227,5.0,4511.8,4511.7,1.27e-06]
[1759711656235,5.224,4511.8,4511.7,1.27e-06]
[1759711657031,0.224,4511.8,4511.7,1.27e-06]
[1759711657642,0.39883,4511.9,4511.7,1.27e-06]
[1759711658048,0.224,4511.8,4511.7,1.27e-06]
[1759711658744,0.5408,4511.8,4511.7,1.27e-06]
[1759711659144,0.224,4511.8,4511.7,1.27e-06]
[1759711660545,5.224,4511.8,4511.7,1.27e-06]
[1759711661039,5.224,4511.8,4510.3,3.4242]
[1759711661040,0.21,4510.4,4510.3,3.4242]
[1759711661245,0.21,4510.4,4510.3,3.9784]
[1759711661246,0.4258,4510.4,4510.3,3.9784]
[1759711661442,0.7426,4510.4,4510.3,3.9784]
[1759711661648,0.21,4510.4,4510.3,3.9784]
[1759711662050,0.39896,4510.4,4510.3,3.9784]
[1759711662245,0.0019652,4510.4,4510.3,3.64936344]
[1759711662446,0.7445652,4510.4,4510.3,3.64936344]
[1759711662849,0.7445652,4510.4,4510.3,3.98126344]
[1759711665950,0.9685652,4510.4,4510.3,3.98126344]
[1759711667852,0.2259652,4510.4,4510.3,3.98126344]
[1759711668059,0.4526652,4510.4,4510.3,3.98126344]
[1759711668458,0.0019652,4510.4,4510.3,9.38022344]
[1759711669156,0.0019652,4510.4,4510.3,4.38022344]
[1759711673866,0.7787652,4510.4,4510.3,0.44156344]
[1759711674263,0.7787652,4510.4,4510.3,0.76376344]
[1759711674454,0.0019652,4510.4,4510.3,0.76376344]
[1759711678069,0.0019652,4510.4,4510.3,5.76376344]
[1759711678666,0.0019652,4510.4,4510.3,0.76376344]
[1759711679165,0.7787652,4510.4,4510.3,0.76376344]
[1759711679367,1.1777252,4510.4,4510.3,0.76376344]
[1759711679565,1.1777252,4510.4,4510.3,0.44156344]
[1759711679870,0.7787652,4510.4,4510.3,0.76376344]
[1759711681163,0.7787652,4510.4,4510.3,0.44156344]
[1759711681563,0.7787652,4510.4,4510.3,0.00286344]
[1759711681872,0.7787652,4510.4,4510.3,0.75386344]
[1759711682267,0.7787652,4510.4,4510.3,0.22006344]
[1759711683571,0.7787652,4510.4,4510.3,0.00286344]
[1759711684764,0.7787652,4510.4,4510.3,1.15283344]
[1759711684969,0.0019652,4510.4,4510.3,1.15283344]
[1759711686081,0.0019652,4510.4,4510.3,0.75386344]
[1759711686474,0.2286652,4510.4,4510.3,0.75386344]
[1759711686674,0.0019652,4510.4,4510.3,0.75386344]
[1759711688681,0.0019652,4510.4,4510.3,0.97786344]
[1759711689274,0.4376652,4510.4,4510.3,1.37682344]
[1759711689577,0.5697652,4510.4,4510.3,1.37682344]
[1759711689775,0.0019652,4510.4,4510.3,1.37682344]
[1759711689981,0.0019652,4510.4,4510.3,1.15282344]
[1759711690985,0.0019652,4510.4,4510.3,0.75386344]
[1759711691180,0.7787652,4510.4,4510.3,0.75386344]
[1759711691386,0.7787652,4510.4,4510.3,0.43166344]
[1759711691685,0.7787652,4510.4,4510.3,0.75386344]
[1759711692681,0.7787652,4510.4,4510.3,0.00286344]
[1759711692889,5.7787652,4510.4,4510.3,0.00286344]
[1759711693083,6.26461196,4510.4,4510.3,0.00286344]
[1759711693290,1.17582,4509.7,4509.6,3.2078]
[1759711694285,1.17582,4509.7,4509.6,3.20959115]
[1759711694491,0.7768,4509.7,4509.6,3.20959115]
[1759711695090,0.7768,4509.7,4509.6,0.00179115]
[1759711695588,0.7768,4509.7,4509.6,0.21899115]
[1759711695783,3.9996,4510.2,4510.1,0.751]
[1759711696091,4.2086,4510.2,4510.1,0.751]
[1759711696789,1.0008,4510.2,4510.1,1.14998]
[1759711697286,0.7768,4510.2,4510.1,1.14998]
[1759711697487,1.0008,4510.2,4510.1,1.14998]
[1759711697992,0.7768,4510.2,4510.1,0.751]
[1759711698192,1.0008,4510.2,4510.1,0.751]
[1759711698986,1.0008,4510.2,4510.1,0.7472]
[1759711701491,1.0008,4510.2,4510.1,0.53]
[1759711701692,0.7766,4510.1,4510.0,0.2203]
[1759711701889,0.7766,4510.1,4510.0,0.7463]
[1759711702399,1.0006,4510.1,4510.0,0.7463]
[1759711703693,1.0006,4510.1,4510.0,1.14529]
[1759711704797,0.2096,4510.1,4510.0,1.28169]
[1759711705098,0.4336,4510.1,4510.0,1.28169]
[1759711705293,0.2096,4510.1,4510.0,1.28169]
[1759711705493,0.4336,4510.1,4510.0,1.28169]
[1759711705899,0.4336,4510.1,4510.0,0.8827]
[1759711706094,0.773,4510.1,4510.0,0.8827]
[1759711708896,1.0006,4510.1,4510.0,0.7463]
[1759711712199,0.0019652,4510.4,4510.3,0.7463]
[1759711712403,0.0019652,4510.4,4510.3,1.53302458]
[1759711713905,0.0019652,4510.4,4510.3,0.7463]
[1759711714400,0.0019652,4510.4,4508.4,34.74665388]
[1759711714401,0.7541,4509.9,4509.8,1.58878331]
[1759711714705,0.7541,4509.7,4509.4,3.2078]
[1759711715504,5.7541,4509.7,4508.9,3.2078]
[1759711715806,0.7541,4508.4,4508.3,0.2208]
[1759711716009,1.54082458,4508.4,4508.3,0.21397613]
[1759711716213,1.22892458,4508.4,4508.2,3.2078]
[1759711716405,0.7541,4508.3,4508.2,3.2078]
[1759711716706,0.7541,4508.3,4508.2,0.00180439]
[1759711716902,1.15324,4508.3,4508.2,0.00180439]
[1759711717100,0.1323,4508.0,4507.9,0.02218352]
[1759711717305,0.1323,4508.0,4506.9,3.2078]
[1759711717306,0.8864,4507.0,4506.9,3.2078]
[1759711717608,0.7541,4506.5,4506.4,3.9669]
[1759711717906,0.7541,4507.1,4507.0,0.5391]
[1759711718107,0.97345191,4507.1,4507.0,0.54182341]
[1759711718508,0.97345191,4507.1,4507.0,0.22352341]
[1759711718701,0.00235191,4507.1,4507.0,1.29180341]
[1759711719206,1.91e-06,4507.1,4507.0,6.29180341]
[1759711720702,0.3119,4508.5,4508.0,0.39917]
[1759711720907,0.5326,4508.5,4508.4,0.7591]
[1759711721512,0.224,4508.5,4508.4,0.7591]
[1759711721704,0.75948248,4508.5,4508.4,0.7591]
[1759711721908,0.98098248,4508.5,4508.4,0.7591]
[1759711722806,0.98098248,4508.5,4508.4,0.4408]
[1759711723111,0.98098248,4508.5,4508.4,0.7591]
[1759711724311,0.66908248,4508.5,4508.4,0.7591]
[1759711724618,0.98098248,4508.5,4508.4,0.7591]
[1759711724818,0.00288248,4508.5,4508.4,1.15824]
[1759711725706,0.00288248,4508.5,4508.4,4.36604]
[1759711725913,0.00288248,4508.5,4508.4,4.54718478]
[1759711727211,4.0942,4509.5,4509.4,0.2208]
[1759711727411,4.2062,4509.5,4509.4,0.2208]
[1759711728013,4.3182,4509.5,4509.4,0.2208]
[1759711728214,4.31980721,4509.5,4509.4,0.2208]
[1759711729516,4.31980721,4509.5,4509.1,0.3183]
[1759711729718,0.3338,4509.1,4508.7,0.39911]
[1759711730019,0.7641,4508.8,4508.7,1.17251]
[1759711731620,0.7641,4508.8,4508.7,0.7734]
[1759711735315,0.3338,4509.2,4509.1,0.2221]
[1759711735518,0.4414,4509.2,4509.1,0.7734]
[1759711735819,0.7752,4509.2,4509.1,0.7734]
[1759711736020,0.9881,4509.2,4509.1,0.7734]
[1759711737417,0.7641,4509.2,4509.1,0.7734]
[1759711738419,3.56570721,4509.5,4509.4,1.17245]
[1759711738420,0.00160721,4509.5,4509.4,1.17245]
[1759711738819,0.76570721,4509.5,4509.4,0.7734]
[1759711742014,0.89240721,4509.5,4509.0,0.3325]
[1759711742216,0.2174,4508.6,4508.5,0.2221]
[1759711742523,0.7641,4508.6,4508.5,0.2221]
[1759711743815,0.7641,4508.6,4508.5,0.5546]
[1759711744018,0.7641,4508.6,4508.5,0.2221]
[1759711744216,0.8908,4508.5,4508.4,3.4299]
[1759711744929,0.2174,4508.5,4508.4,3.9812]
[1759711745222,3.2078,4509.1,4508.4,3.9812]
[1759711745223,0.00160721,4509.5,4509.4,0.2221]
[1759711745418,0.00160721,4509.5,4509.4,1.17245]
[1759711745616,0.21900721,4509.5,4509.4,1.17245]
[1759711746021,0.55280721,4509.5,4509.4,1.17245]
[1759711747422,0.00160721,4509.5,4509.4,1.17245]
[1759711748331,0.00160721,4509.5,4509.4,2.76123331]
[1759711748931,0.2174,4510.7,4510.6,0.5513]
[1759711749135,0.2174,4510.7,4510.6,1.17234]
[1759711749633,0.7641,4510.7,4510.6,1.17234]
[1759711749827,0.76674629,4510.7,4510.6,1.17410011]
[1759711752828,6.29e-06,4510.7,4510.6,1.17410011]
[1759711753629,0.7641,4511.9,4511.8,0.39883]
[1759711753824,0.7641,4511.9,4511.8,1.17223]
[1759711753825,0.2174,4511.9,4511.8,1.17223]
[1759711754724,0.21936928,4511.9,4511.8,1.17223]
[1759711754930,0.00196928,4511.9,4511.8,1.17223]
[1759711756630,0.21936928,4511.9,4511.8,0.7734]
[1759711756836,0.76606928,4511.9,4511.8,1.17224]
[1759711757634,0.76606928,4511.9,4511.8,0.7734]
[1759711758432,0.00196928,4511.9,4511.8,0.7734]
[1759711759235,0.00196928,4511.9,4511.8,0.9974]
[1759711759541,0.75186928,4511.9,4511.8,0.7734]
[1759711760336,0.20866928,4511.9,4511.8,0.7734]
[1759711760936,0.53576928,4511.9,4511.8,0.7734]
[1759711762139,0.00196928,4511.9,4511.8,0.7734]
[1759711766047,0.2287,4512.9,4512.8,0.39877]
[1759711766248,0.022,4512.9,4512.8,1.16887]
[1759711767045,0.02359858,4512.9,4512.8,1.16887]
[1759711768949,0.52536,4514.0,4513.7,0.82749]
[1759711768950,0.7499,4513.8,4513.7,0.82749]
[1759711769246,0.7499,4513.8,4513.7,0.7701]
[1759711769551,0.7499,4513.8,4513.4,0.39871]
[1759711769746,0.7499,4513.8,4513.6,0.39869]
[1759711769948,0.75152085,4513.8,4513.6,0.39869]
[1759711770146,0.3271,4513.7,4513.6,0.39869]
[1759711770353,0.7499,4513.7,4513.6,0.61119]
[1759711770750,0.7499,4513.7,4513.6,0.95249]
[1759711770946,0.7499,4513.7,4513.6,1.16879]
[1759711771152,0.7499,4513.7,4513.6,0.7701]
[1759711771451,0.7499,4513.1,4513.0,1.39284]
[1759711774651,0.7499,4513.1,4513.0,1.16884]
[1759711775053,0.7499,4513.1,4513.0,0.39874]
[1759711775257,0.7499,4513.1,4513.0,0.61594]
[1759711775758,0.7499,4513.1,4513.0,0.94424]
[1759711775958,0.7499,4513.1,4513.0,1.16604]
[1759711776452,0.7499,4513.1,4513.0,0.439]
[1759711776857,0.7499,4513.1,4513.0,0.2172]
[1759711777054,0.6511,4513.0,4512.9,3.60654]
[1759711777359,0.8666,4513.0,4512.9,3.60654]
[1759711777750,0.7394,4513.0,4512.9,4.37384]
[1759711777954,0.7394,4513.4,4513.3,0.7673]
[1759711778353,0.7394,4513.4,4513.2,0.39871]
[1759711778548,0.39872,4513.2,4513.0,0.72703]
[1759711778847,0.7394,4513.1,4513.0,0.2172]
[1759711779654,0.7394,4513.1,4513.0,0.7673]
[1759711780262,0.7394,4513.1,4513.0,4.1037]
[1759711780263,0.2133,4513.1,4513.0,4.1037]
[1759711780650,0.5239,4513.1,4513.0,4.1037]
[1759711781361,0.2133,4513.1,4513.0,4.1037]
[1759711782058,0.7394,4513.1,4513.0,0.8959]
[1759711782263,0.7394,4513.1,4513.0,0.7673]
[1759711784566,0.2133,4513.1,4513.0,0.8959]
[1759711785067,0.2133,4513.1,4513.0,4.1037]
[1759711786367,0.5239,4513.4,4513.3,0.7673]
[1759711787069,3.7317,4513.7,4513.6,1.16598]
[1759711787262,3.4211,4513.7,4513.6,1.16598]
[1759711787569,3.4211,4513.7,4513.6,0.7673]
[1759711787871,3.9726,4513.7,4513.6,0.7673]
[1759711788658,0.62361,4513.3,4513.2,0.2144]
[1759711788863,1.17511,4513.3,4513.2,0.2144]
[1759711789168,0.7764,4513.3,4513.2,0.2144]
[1759711792466,0.566,4513.0,4512.9,0.93604]
[1759711792769,0.9009,4513.0,4512.9,0.93604]
[1759711793367,0.3349,4512.9,4512.5,3.6575]
[1759711793566,0.7764,4512.8,4512.7,0.39875]
[1759711793767,0.7764,4512.8,4512.7,0.61315]
[1759711794171,0.7764,4512.8,4512.7,0.93605]
[1759711794368,0.7764,4512.8,4512.7,1.15485]
[1759711794572,0.5598,4513.5,4513.4,0.2144]
[1759711794766,1.27178076,4513.5,4513.4,1.1548]
[1759711795166,0.7764,4513.5,4513.4,1.1548]
[1759711796076,1.29959,4513.5,4513.4,0.7561]
[1759711796281,1.79530394,4513.5,4513.4,0.7561]
[1759711796481,1.79530394,4513.5,4513.4,0.4332]
[1759711797981,1.29959,4513.5,4513.4,0.4332]
[1759711798378,0.9009,4513.5,4513.4,0.4332]
[1759711798578,0.9009,4513.5,4513.4,1.1548]
[1759711798977,0.9009,4513.5,4513.4,0.8319]
[1759711799779,0.3349,4514.1,4513.7,1.15477]
[1759711799972,1.05467293,4514.1,4513.7,1.15477]
[1759711800178,0.5589,4514.1,4513.7,1.15477]
[1759711800374,0.22652085,4513.8,4513.7,1.15477]
[1759711801574,0.77802085,4513.8,4513.7,0.7561]
[1759711801778,1.17511,4513.2,4513.1,1.59060521]
[1759711802080,1.17516,4512.7,4512.6,0.5373]
[1759711802676,1.17516,4512.7,4512.6,0.2144]
[1759711803876,1.17516,4512.7,4512.5,3.2078]
[1759711804076,0.39881,4512.1,4512.0,3.2078]
[1759711804278,0.39885,4511.7,4511.6,1.59060521]
[1759711804486,1.17525,4511.7,4511.6,0.2144]
[1759711804886,1.17525,4511.7,4511.6,0.5373]
[1759711805486,0.2249,4511.7,4511.6,0.7561]
[1759711806491,0.7764,4511.7,4511.6,0.4332]
[1759711807787,0.7764,4511.7,4511.6,0.2144]
[1759711808886,1.1753,4511.1,4511.0,0.4332]
[1759711809090,1.17533,4510.7,4510.6,0.75786011]
[1759711809282,0.7764,4510.7,4510.6,0.75786011]
[1759711810286,0.2249,4510.7,4510.6,1.15680011]
[1759711810480,0.2249,4510.7,4510.6,0.75786011]
[1759711810886,0.5598,4510.7,4510.6,0.75786011]
[1759711811081,0.5598,4510.7,4510.6,0.21616011]
[1759711811082,0.7764,4510.7,4510.6,0.21616011]
[1759711811393,0.7764,4510.7,4510.6,0.00176011]
[1759711812486,1.0004,4510.7,4510.6,0.75786011]
[1759711813386,1.0004,4510.7,4510.6,0.00176011]
[1759711814981,9.2082,4510.7,4510.6,0.00176011]
[1759711818789,8.9842,4510.7,4510.6,0.00176011]
[1759711818990,9.2082,4510.7,4510.6,0.00176011]
[1759711819391,1.15865,4509.4,4509.3,3.2078]
[1759711819591,1.38265,4509.4,4509.3,3.2078]
[1759711820292,1.38434638,4509.4,4509.3,3.21015071]
[1759711820499,4.13744862,4509.4,4509.3,0.00235071]
[1759711820793,1.15873,4508.4,4508.3,3.2078]
[1759711820999,1.15873,4508.4,4508.3,3.4226]
[1759711821000,1.38273,4508.4,4508.3,3.4226]
[1759711821192,1.38273,4508.4,4508.3,3.2078]
[1759711821691,1.29057,4508.0,4507.9,0.02218352]
[1759711821893,1.1154,4508.0,4507.9,0.02466612]
[1759711822091,0.7596,4508.0,4507.9,0.78456612]
[1759711822292,0.9836,4508.0,4507.9,0.02466612]
[1759711822499,1.1154,4508.0,4507.9,0.02466612]
[1759711824092,1.1154,4508.0,4507.9,0.0024826]
[1759711824294,0.7596,4507.1,4507.0,3.7516]
[1759711824498,0.9836,4507.1,4507.0,3.9677]
[1759711825193,0.9836,4507.1,4507.0,3.96987812]
[1759711825398,0.5471,4507.5,4507.4,0.4309]
[1759711825597,0.9836,4507.5,4507.4,0.7599]
[1759711826700,1.1154,4507.5,4507.4,0.7599]
[1759711827196,1.1154,4507.5,4507.4,0.2148]
[1759711829089,1.1154,4507.5,4507.4,0.7599]
[1759711829801,1.1154,4507.5,4507.4,0.4309]
[1759711829997,0.8914,4507.5,4507.4,0.4309]
[1759711830198,1.1154,4507.5,4507.4,0.2148]
[1759711830500,0.8914,4507.5,4507.4,0.2148]
[1759711830703,1.1154,4507.5,4507.4,0.2148]
[1759711831802,0.4201,4507.2,4507.1,0.5438]
[1759711832005,0.7596,4507.2,4507.1,0.7599]
[1759711832797,0.9836,4507.2,4507.1,0.7599]
[1759711832999,0.2076,4507.6,4507.5,0.4241]
[1759711833206,0.2076,4507.6,4507.5,0.7372]
[1759711833207,0.9757,4507.6,4507.5,0.7372]
[1759711833405,0.9757,4507.6,4507.5,0.2148]
[1759711834804,1.17133,4507.3,4507.2,0.5317]
[1759711834999,0.7721,4507.3,4507.2,0.5317]
[1759711835204,0.7721,4507.3,4507.2,0.741]
[1759711835905,0.224,4507.3,4507.2,0.741]
[1759711836208,0.7732,4507.3,4507.2,0.741]
[1759711836402,0.9961,4507.3,4507.2,0.741]
[1759711837701,0.78778167,4507.5,4507.2,1.14023]
[1759711837906,0.78778167,4507.5,4507.4,0.741]
[1759711837907,1.01578167,4507.5,4507.4,0.741]
[1759711838105,1.23978167,4507.5,4507.4,0.741]
[1759711838307,1.56098167,4507.5,4507.4,0.741]
[1759711839108,1.78388167,4507.5,4507.4,0.741]
[1759711839304,0.228,4507.1,4507.0,3.65507812]
[1759711839603,0.7721,4507.1,4507.0,3.95097812]
[1759711839809,0.7721,4507.1,4507.0,0.74317812]
[1759711840006,1.14808167,4507.5,4507.0,1.27442812]
[1759711840203,1.55988167,4507.5,4507.4,0.741]